bitfinex/quotes_BTCUSD_20251201
["timestamp","ask_amount","ask_price","bid_price","bid_amount"]
[1764606851449,2.38532669,84903.0,84902.0,0.00011652]
[1764606851596,2.323,84903.0,84902.0,0.00411652]
[1764606851796,2.34147619,84903.0,84902.0,0.00411652]
[1764606851997,2.34147619,84903.0,84902.0,0.00011652]
[1764606852420,2.37402132,84903.0,84902.0,0.00011652]
[1764606852801,2.37402132,84903.0,84902.0,0.00111652]
[1764606853003,0.01847619,84903.0,84902.0,0.00111652]
[1764606853214,0.01847619,84903.0,84902.0,0.15438652]
[1764606853632,0.01847619,84903.0,84902.0,0.38995223]
[1764606853952,2.0,84925.0,84904.0,0.011778]
[1764606854096,0.323,84924.0,84905.0,0.01177786]
[1764606854293,2.0,84923.0,84903.0,0.10362814]
[1764606854523,0.01177565,84921.0,84903.0,0.09185]
[1764606854722,0.03634,84904.0,84902.0,0.00011652]
[1764606854978,0.03634,84904.0,84902.0,0.00311652]
[1764606855277,0.03254513,84903.0,84902.0,0.00011652]
[1764606855657,0.0495,84903.0,84902.0,0.00011652]
[1764606855984,0.43482669,84903.0,84902.0,0.00011652]
[1764606856183,2.43482669,84903.0,84902.0,0.00211652]
[1764606856378,2.43482669,84903.0,84902.0,0.00011652]
[1764606857221,2.68886581,84903.0,84902.0,0.00011652]
[1764606857393,2.71414441,84903.0,84902.0,0.00011652]
[1764606857745,2.71414441,84903.0,84902.0,0.00211652]
[1764606858429,2.71414441,84903.0,84902.0,0.00011652]
[1764606858891,0.55857958,84897.0,84860.0,0.0004]
[1764606859096,0.01178258,84871.0,84860.0,0.0004]
[1764606859298,0.03614,84861.0,84860.0,0.00078894]
[1764606860457,0.03628,84868.0,84860.0,0.00078894]
[1764606861084,0.03628,84868.0,84861.0,0.23567878]
[1764606861309,0.03628,84868.0,84860.0,0.23647064]
[1764606861524,0.03628,84868.0,84863.0,0.23567396]
[1764606861677,2.04995,84867.0,84860.0,0.00078894]
[1764606861890,0.323,84862.0,84860.0,0.00078894]
[1764606862093,0.323,84862.0,84860.0,0.23846876]
[1764606862252,0.323,84862.0,84860.0,0.23646876]
[1764606862971,0.03628,84868.0,84864.0,0.23567058]
[1764606863184,2.323,84865.0,84864.0,0.23567058]
[1764606863887,2.323,84864.0,84863.0,0.23567306]
[1764606864107,2.323,84864.0,84860.0,0.00278894]
[1764606864445,0.323,84862.0,84860.0,0.23647121]
[1764606865332,0.03628,84868.0,84863.0,0.23567177]
[1764606865469,0.323,84866.0,84865.0,0.23566774]
[1764606865715,0.03159563,84894.0,84871.0,0.01178258]
[1764606866107,0.323,84892.0,84888.0,0.00026159]
[1764606866246,2.0,84891.0,84888.0,0.00026159]
[1764606866454,2.0,84897.0,84892.0,0.23559233]
[1764606866812,0.001,84894.0,84888.0,0.2358648]
[1764606867105,2.0,84893.0,84888.0,0.00026159]
[1764606867303,2.0,84893.0,84892.0,0.23559345]
[1764606867453,2.0,84893.0,84891.0,0.23559566]
[1764606867454,2.0,84903.0,84891.0,0.01177981]
[1764606867641,0.02528121,84902.0,84889.0,0.01178008]
[1764606867994,2.0,84899.0,84891.0,0.23559623]
[1764606868246,2.0,84899.0,84889.0,0.01178008]
[1764606868452,0.323,84896.0,84892.0,0.003]
[1764606868625,2.323,84893.0,84892.0,0.23559171]
[1764606869020,2.323,84893.0,84892.0,0.23659171]
[1764606869569,2.323,84893.0,84892.0,0.23559171]
[1764606870432,1.323,84893.0,84892.0,0.23559171]
[1764606870657,2.323,84893.0,84892.0,0.23559171]
[1764606870840,0.323,84893.0,84892.0,0.23559171]
[1764606871084,0.323,84893.0,84892.0,0.23559345]
[1764606871499,0.323,84892.0,84888.0,0.00037796]
[1764606871645,0.0495,84889.0,84888.0,0.00037796]
[1764606871826,2.0,84892.0,84888.0,0.00037796]
[1764606872525,0.323,84891.0,84890.0,0.23559901]
[1764606872731,0.01847965,84896.0,84888.0,0.00037796]
[1764606873041,2.0,84892.0,84891.0,0.23559623]
[1764606873264,0.323,84892.0,84891.0,0.23559623]
[1764606873469,0.323,84892.0,84890.0,0.23559901]
[1764606873669,0.323,84892.0,84891.0,0.23559623]
[1764606874071,0.323,84892.0,84889.0,0.01178008]
[1764606874278,0.323,84892.0,84891.0,0.003]
[1764606875070,0.323,84892.0,84891.0,0.30015623]
[1764606875267,0.03673,84912.0,84891.0,0.30015623]
[1764606875268,0.03673,84912.0,84899.0,0.23557328]
[1764606875471,0.01847773,84902.0,84897.0,0.23557928]
[1764606875720,2.0,84901.0,84897.0,0.24735825]
[1764606875867,2.0,84901.0,84892.0,0.09488]
[1764606876068,0.323,84898.0,84895.0,0.01177925]
[1764606876273,0.01847773,84902.0,84901.0,0.04561]
[1764606876469,0.34147773,84902.0,84893.0,0.09488]
[1764606876698,0.323,84898.0,84892.0,0.01177967]
[1764606877029,0.323,84900.0,84891.0,0.23559577]
[1764606877030,0.323,84900.0,84891.0,0.24737558]
[1764606877233,0.01847773,84902.0,84889.0,0.01178008]
[1764606877234,0.323,84898.0,84889.0,0.01178008]
[1764606877646,0.323,84898.0,84892.0,0.01177967]
[1764606877810,0.323,84898.0,84894.0,0.01177939]
[1764606878007,0.323,84898.0,84897.0,0.23557958]
[1764606878218,0.323,84900.0,84899.0,0.0117787]
[1764606878415,0.323,84900.0,84897.0,0.07333897]
[1764606878642,0.323,84900.0,84898.0,0.2355768]
[1764606878954,0.323,84900.0,84899.0,0.23557403]
[1764606879682,0.323,84900.0,84899.0,0.15821169]
[1764606879807,0.323,84900.0,84899.0,0.24131299]
[1764606880412,0.323,84900.0,84899.0,0.14643299]
[1764606880829,0.323,84910.0,84899.0,0.06156]
[1764606881052,2.0,84908.0,84899.0,0.15644]
[1764606881253,0.323,84905.0,84899.0,0.15644]
[1764606881459,0.323,84905.0,84899.0,0.15844]
[1764606882089,0.323,84905.0,84899.0,0.15644]
[1764606882294,0.01628716,84914.0,84899.0,0.15644]
[1764606882495,0.323,84908.0,84893.0,0.23558963]
[1764606882676,0.323,84905.0,84894.0,0.01177939]
[1764606882863,0.323,84905.0,84899.0,0.0117787]
[1764606883064,0.323,84905.0,84895.0,0.01177925]
[1764606883264,0.323,84905.0,84899.0,0.04561]
[1764606883564,0.01847717,84904.0,84899.0,0.04561]
[1764606884701,0.01847717,84904.0,84899.0,0.04661]
[1764606884903,0.01847717,84904.0,84899.0,0.04561]
[1764606885439,0.01847717,84904.0,84899.0,0.04661]
[1764606885647,0.01847717,84904.0,84903.0,0.06156]
[1764606885773,0.323,84909.0,84903.0,0.06156]
[1764606885974,2.0,84908.0,84903.0,0.06156]
[1764606886570,2.0,84908.0,84903.0,0.15644]
[1764606886769,0.0316727,84922.0,84914.0,0.23552993]
[1764606886993,0.2445,84927.0,84907.0,0.07333759]
[1764606886994,2.0,84925.0,84922.0,0.01177551]
[1764606887244,2.0,84936.0,84926.0,0.04561]
[1764606887437,0.02533356,84935.0,84926.0,0.04561]
[1764606887591,2.0,84937.0,84929.0,0.23549015]
[1764606887795,2.0,84935.0,84934.0,0.23547581]
[1764606888006,2.0,84936.0,84933.0,0.01177398]
[1764606888233,0.323,84935.0,84932.0,0.01177412]
[1764606888432,0.323,84935.0,84930.0,0.0117744]
[1764606888691,2.0,84936.0,84930.0,0.1525467]
[1764606888893,0.00011641,84937.0,84935.0,0.23547418]
[1764606889107,0.00011641,84937.0,84936.0,0.06156]
[1764606889552,0.00011641,84937.0,84936.0,0.15644]
[1764606890187,0.00011641,84937.0,84936.0,0.34935217]
[1764606890417,0.00011641,84937.0,84936.0,0.45303038]
[1764606890752,0.00011641,84937.0,84936.0,0.45703038]
[1764606891377,0.00011641,84937.0,84936.0,0.44154939]
[1764606891575,0.00011641,84937.0,84936.0,0.3810264]
[1764606891773,0.00011641,84937.0,84936.0,0.15844]
[1764606892116,0.00011641,84937.0,84936.0,0.17728]
[1764606892331,0.00011641,84937.0,84936.0,0.29618819]
[1764606892763,0.00011641,84937.0,84936.0,0.30418819]
[1764606892994,0.00011641,84937.0,84936.0,0.40760482]
[1764606893203,0.00011641,84937.0,84936.0,0.39960482]
[1764606893394,0.00011641,84937.0,84936.0,0.4786088]
[1764606893599,0.00011641,84937.0,84936.0,0.4796088]
[1764606894546,0.00011641,84937.0,84936.0,0.46812781]
[1764606894770,0.00011641,84937.0,84936.0,0.4796088]
[1764606895796,0.00011641,84937.0,84936.0,0.4607688]
[1764606895997,0.00011641,84937.0,84936.0,0.46812781]
[1764606896195,0.00011641,84937.0,84936.0,0.38676482]
[1764606896609,0.00011641,84937.0,84936.0,0.41708581]
[1764606897012,0.00011641,84937.0,84936.0,0.4796088]
[1764606897337,0.00011641,84937.0,84936.0,0.4607688]
[1764606897515,0.00011641,84937.0,84936.0,0.4796088]
[1764606899018,0.00011641,84937.0,84936.0,0.46812781]
[1764606899544,0.00011641,84937.0,84936.0,0.4726088]
[1764606899748,0.00011641,84937.0,84936.0,0.46012781]
[1764606899969,0.00011641,84937.0,84936.0,0.46812781]
[1764606900172,0.00011641,84937.0,84936.0,0.45128781]
[1764606900378,0.00011641,84937.0,84936.0,0.4816088]
[1764606900581,0.00011641,84937.0,84936.0,0.06956]
[1764606900782,0.00011641,84937.0,84936.0,0.16]
[1764606900939,0.00011641,84937.0,84936.0,0.168]
[1764606901265,0.00011641,84937.0,84936.0,0.008]
[1764606901460,0.00011641,84937.0,84936.0,0.17261]
[1764606901784,0.00011641,84937.0,84936.0,0.42534241]
[1764606901919,0.00011641,84937.0,84936.0,0.5067054]
[1764606902123,0.00011641,84937.0,84936.0,0.51018639]
[1764606902496,0.00011641,84937.0,84936.0,0.16461]
[1764606902622,0.00011641,84937.0,84936.0,0.003]
[1764606902829,0.00011641,84937.0,84931.0,0.01884]
[1764606903257,0.00011641,84937.0,84936.0,0.007]
[1764606903545,0.00011641,84937.0,84936.0,0.001]
[1764606903731,0.00011641,84937.0,84936.0,0.005]
[1764606903899,0.04961641,84937.0,84936.0,0.005]
[1764606904101,0.05010641,84937.0,84936.0,0.005]
[1764606904627,2.32311641,84937.0,84936.0,0.005]
[1764606904799,2.32311641,84937.0,84936.0,0.16961]
[1764606904988,2.32311641,84937.0,84936.0,0.07117]
[1764606905186,2.32311641,84937.0,84936.0,0.16461]
[1764606905397,2.32311641,84937.0,84936.0,0.06617]
[1764606905611,2.32311641,84937.0,84936.0,0.06817]
[1764606905995,2.32311641,84937.0,84936.0,0.06717]
[1764606906292,0.323,84934.0,84929.0,0.04691]
[1764606906533,0.323,84934.0,84919.0,0.04561]
[1764606906996,0.323,84934.0,84919.0,0.0878066]
[1764606907197,0.323,84934.0,84919.0,0.05738592]
[1764606907408,0.00011641,84937.0,84919.0,0.05738592]
[1764606907618,0.323,84933.0,84919.0,0.05738592]
[1764606907863,0.323,84933.0,84920.0,0.01177578]
[1764606908069,0.323,84933.0,84919.0,0.04561]
[1764606908511,2.0,84918.0,84890.0,0.11021995]
[1764606908689,0.323,84915.0,84899.0,0.04691]
[1764606908890,2.0,84914.0,84899.0,0.04691]
[1764606909126,0.323,84915.0,84899.0,0.04691]
[1764606909276,0.323,84912.0,84899.0,0.04691]
[1764606909473,0.323,84910.0,84899.0,0.09087268]
[1764606909790,0.323,84910.0,84899.0,0.04791]
[1764606909938,0.323,84910.0,84899.0,0.04691]
[1764606910382,0.04832662,84914.0,84899.0,0.04691]
[1764606910596,2.0,84911.0,84899.0,0.04691]
[1764606910801,0.323,84908.0,84895.0,0.04691]
[1764606911005,0.323,84906.0,84895.0,0.04691]
[1764606911712,0.06127689,84912.0,84888.0,0.00026159]
[1764606911713,0.03664,84896.0,84888.0,0.00026159]
[1764606911888,0.323,84905.0,84899.0,0.0117787]
[1764606912088,2.323,84905.0,84904.0,0.04691]
[1764606912462,0.323,84925.0,84904.0,0.11308]
[1764606912588,0.323,84912.0,84904.0,0.11308]
[1764606913215,0.323,84912.0,84904.0,0.11508]
[1764606913612,0.0495,84927.0,84904.0,0.126858]
[1764606913934,0.01177467,84928.0,84904.0,0.04891]
[1764606913935,0.323,84912.0,84904.0,0.04891]
[1764606914153,0.323,84912.0,84910.0,0.23554233]
[1764606914354,0.323,84912.0,84911.0,0.06617]
[1764606914564,0.323,84912.0,84911.0,0.16461]
[1764606914774,0.03664,84932.0,84914.0,0.01177662]
[1764606914987,0.323,84930.0,84914.0,0.01177662]
[1764606915187,0.323,84926.0,84916.0,0.01177634]
[1764606915424,0.323,84926.0,84914.0,0.11021662]
[1764606915425,2.0,84931.0,84914.0,0.11021662]
[1764606915630,2.0,84931.0,84916.0,0.04691]
[1764606916014,2.0,84930.0,84916.0,0.05868634]
[1764606916212,2.0,84930.0,84916.0,0.1951885]
[1764606916373,0.323,84927.0,84916.0,0.1951885]
[1764606916576,2.0,84926.0,84917.0,0.0117762]
[1764606916782,2.0,84926.0,84916.0,0.3936524]
[1764606917094,2.0,84926.0,84923.0,0.01177537]
[1764606917290,0.00011639,84931.0,84923.0,0.01177537]
[1764606917291,2.0,84928.0,84925.0,0.07794509]
[1764606917511,2.0,84928.0,84925.0,0.06617]
[1764606917938,2.0,84928.0,84925.0,0.16461]
[1764606918433,0.03664,84926.0,84918.0,0.01884]
[1764606918832,0.03664,84926.0,84925.0,0.003]
[1764606918978,0.03664,84926.0,84918.0,0.01884]
[1764606919380,0.323,84928.0,84925.0,0.001]
[1764606919580,0.00011639,84931.0,84923.0,0.01177537]
[1764606919805,2.0,84928.0,84925.0,0.002]
[1764606920209,2.0,84928.0,84926.0,0.23549731]
[1764606920426,0.323,84929.0,84926.0,0.01177495]
[1764606920643,0.323,84929.0,84928.0,0.30166359]
[1764606920841,0.00011639,84931.0,84930.0,0.23548804]
[1764606921061,0.00011639,84931.0,84930.0,0.31313903]
[1764606921275,0.00011639,84931.0,84930.0,0.17609099]
[1764606921410,0.00011639,84931.0,84930.0,0.06617]
[1764606921604,0.00011639,84931.0,84930.0,0.07544203]
[1764606921858,0.00011639,84931.0,84930.0,0.17388203]
[1764606922174,0.00011639,84931.0,84930.0,0.40509804]
[1764606922361,0.00011639,84931.0,84930.0,0.40009804]
[1764606922573,0.00011639,84931.0,84930.0,0.40409804]
[1764606922766,0.00011639,84931.0,84930.0,0.40509804]
[1764606922967,0.00011639,84931.0,84930.0,0.40109804]
[1764606923175,0.00011639,84931.0,84930.0,0.516324]
[1764606923397,0.00011639,84931.0,84930.0,0.52780499]
[1764606924261,0.00011639,84931.0,84930.0,0.59432798]
[1764606924458,0.00011639,84931.0,84930.0,0.58932798]
[1764606924665,0.00011639,84931.0,84930.0,0.59732798]
[1764606925068,0.00011639,84931.0,84930.0,0.59632798]
[1764606925245,0.00011639,84931.0,84930.0,0.17161]
[1764606925443,0.00011639,84931.0,84930.0,0.42693804]
[1764606925666,0.00011639,84931.0,84930.0,0.19145]
[1764606926030,0.00011639,84931.0,84930.0,0.41893804]
[1764606926176,0.00011639,84931.0,84930.0,0.41993804]
[1764606926372,0.00011639,84931.0,84930.0,0.535164]
[1764606927135,0.00011639,84931.0,84930.0,0.28083596]
[1764606927271,0.00011639,84931.0,84930.0,0.39916804]
[1764606927659,0.00011639,84931.0,84930.0,0.46669103]
[1764606927861,0.00011639,84931.0,84930.0,0.42300804]
[1764606928701,0.00011639,84931.0,84930.0,0.43448903]
[1764606929016,0.00011639,84931.0,84930.0,0.54971499]
[1764606929368,0.00011639,84931.0,84930.0,0.53087499]
[1764606929566,0.00011639,84931.0,84930.0,0.538234]
[1764606930163,0.00011639,84931.0,84930.0,0.519394]
[1764606930366,0.00011639,84931.0,84930.0,0.42300804]
[1764606931457,0.00011639,84931.0,84930.0,0.16868]
[1764606931769,0.00011639,84931.0,84930.0,0.006]
[1764606931947,2.0,84945.0,84930.0,0.006]
[1764606932354,2.0,84943.0,84930.0,0.006]
[1764606932910,2.0,84941.0,84930.0,0.006]
[1764606933316,2.0,84941.0,84930.0,0.005]
[1764606933620,2.0,84940.0,84930.0,0.005]
[1764606933822,2.0,84940.0,84930.0,0.001]
[1764606934159,2.0,84940.0,84930.0,0.003]
[1764606934355,2.0,84940.0,84925.0,1.0]
[1764606934562,2.0,84939.0,84930.0,0.001]
[1764606934763,2.0495,84939.0,84930.0,0.001]
[1764606934961,2.0495,84939.0,84925.0,1.0]
[1764606934962,2.0,84938.0,84925.0,1.0]
[1764606935157,0.323,84935.0,84930.0,0.002]
[1764606935417,0.01177398,84933.0,84930.0,0.002]
[1764606935622,0.00086,84931.0,84925.0,1.0]
[1764606935816,0.03749,84926.0,84925.0,1.0]
[1764606936384,0.08615,84926.0,84925.0,1.0]
[1764606936802,2.64464914,84926.0,84925.0,1.0]
[1764606936985,2.78523455,84926.0,84925.0,1.0]
[1764606937196,2.57205048,84926.0,84925.0,1.0]
[1764606937397,2.34835945,84926.0,84925.0,1.0]
[1764606937796,2.34835945,84926.0,84925.0,1.003]
[1764606938147,2.58385859,84926.0,84925.0,1.0]
[1764606938509,2.58385859,84926.0,84925.0,1.001]
[1764606938673,2.71755935,84926.0,84925.0,1.0]
[1764606939071,2.74917497,84926.0,84925.0,1.001]
[1764606939293,2.749249,84926.0,84925.0,1.001]
[1764606939696,2.81177199,84926.0,84925.0,1.001]
[1764606939932,2.66485638,84926.0,84925.0,1.001]
[1764606940294,2.66485638,84926.0,84925.0,1.0]
[1764606940518,2.68333205,84926.0,84925.0,0.56475769]
[1764606940722,2.68433205,84926.0,84925.0,0.56475769]
[1764606940924,2.88916016,84926.0,84925.0,0.56475769]
[1764606941512,2.9314314,84926.0,84925.0,0.56475769]
[1764606941910,2.88916016,84926.0,84925.0,0.56475769]
[1764606942247,2.87068449,84926.0,84925.0,0.56475769]
[1764606942398,2.91291213,84926.0,84925.0,0.56475769]
[1764606942600,2.91191213,84926.0,84925.0,0.56475769]
[1764606942940,2.91291213,84926.0,84925.0,0.56475769]
[1764606943438,2.86968449,84926.0,84925.0,0.56475769]
[1764606943734,2.87068449,84926.0,84925.0,0.56475769]
[1764606944500,3.11518449,84926.0,84925.0,0.56475769]
[1764606945258,3.13366096,84926.0,84925.0,0.56475769]
[1764606945610,3.13266096,84926.0,84925.0,0.56475769]
[1764606945806,3.13366096,84926.0,84925.0,0.56475769]
[1764606947229,3.13566096,84926.0,84925.0,0.56475769]
[1764606947628,3.020435,84926.0,84925.0,0.48575769]
[1764606947846,2.89992368,84926.0,84925.0,0.48575769]
[1764606948035,2.52683339,84926.0,84925.0,0.48575769]
[1764606948345,2.83135859,84926.0,84925.0,0.48575769]
[1764606948574,2.003,84926.0,84925.0,0.48575769]
[1764606948739,2.002,84926.0,84925.0,0.59784769]
[1764606948948,2.002,84926.0,84925.0,0.48575769]
[1764606949196,2.325,84926.0,84925.0,0.48575769]
[1764606949488,2.56049914,84926.0,84925.0,0.48575769]
[1764606949695,2.70100901,84926.0,84925.0,0.48575769]
[1764606949896,2.69900901,84926.0,84925.0,0.48575769]
[1764606950097,0.69900901,84926.0,84925.0,0.48575769]
[1764606950332,2.69900901,84926.0,84925.0,0.48575769]
[1764606950660,2.34828391,84926.0,84925.0,0.48575769]
[1764606950991,2.0,84926.0,84925.0,0.48575769]
[1764606951194,0.01847376,84926.0,84925.0,0.48575769]
[1764606951424,2.34147376,84926.0,84925.0,0.48575769]
[1764606951594,2.01847376,84926.0,84925.0,0.54919769]
[1764606951802,2.34147376,84926.0,84925.0,0.64182769]
[1764606952031,2.01847376,84926.0,84925.0,0.64182769]
[1764606952413,2.0,84941.0,84928.0,0.01177467]
[1764606952613,0.03583,84942.0,84926.0,0.09263]
[1764606952614,2.0,84932.0,84926.0,0.09263]
[1764606952851,2.323,84932.0,84931.0,0.11209]
[1764606953749,2.0,84930.0,84926.0,0.003]
[1764606953948,0.02563175,84929.0,84925.0,0.48675769]
[1764606954150,0.323,84931.0,84925.0,0.001]
[1764606954356,0.323,84929.0,84926.0,0.10981495]
[1764606954547,0.323,84929.0,84926.0,0.09804]
[1764606954800,0.323,84929.0,84928.0,0.06479]
[1764606955332,0.03583,84942.0,84928.0,0.16283]
[1764606955534,0.01847175,84931.0,84928.0,0.16283]
[1764606956470,0.01847175,84931.0,84928.0,0.06479]
[1764606956896,0.01847175,84931.0,84930.0,0.06479]
[1764606958129,0.01847175,84931.0,84930.0,0.06879]
[1764606958307,0.01847175,84931.0,84930.0,0.16683]
[1764606958508,0.01847175,84931.0,84930.0,0.21041762]
[1764606958712,2.0,84943.0,84938.0,0.01177329]
[1764606958910,2.0,84955.0,84935.0,0.0117737]
[1764606959119,0.01847189,84956.0,84935.0,0.0117737]
[1764606959120,0.323,84952.0,84936.0,0.01177357]
[1764606959323,0.323,84948.0,84935.0,0.09804]
[1764606959508,0.323,84946.0,84935.0,0.09804]
[1764606959686,0.323,84942.0,84935.0,0.09804]
[1764606959886,0.323,84938.0,84935.0,0.09804]
[1764606960094,2.323,84938.0,84937.0,0.30025864]
[1764606960303,2.0,84957.0,84949.0,0.01177176]
[1764606960610,2.0,84955.0,84950.0,0.09804]
[1764606960813,0.0001165,84957.0,84935.0,0.002]
[1764606960814,0.02708,84950.0,84935.0,0.002]
[1764606961016,0.02708,84950.0,84932.0,0.01884]
[1764606961017,0.67047248,84945.0,84932.0,0.01884]
[1764606961290,0.323,84947.0,84932.0,0.02682449]
[1764606961437,0.323,84947.0,84937.0,0.003]
[1764606962360,0.323,84943.0,84937.0,0.003]
[1764606962574,0.02265,84938.0,84930.0,0.04923]
[1764606962886,0.02265,84938.0,84935.0,0.001]
[1764606963013,0.02265,84938.0,84930.0,0.04923]
[1764606963417,0.02265,84938.0,84937.0,0.002]
[1764606963623,0.323,84939.0,84937.0,0.002]
[1764606963624,0.323,84939.0,84938.0,0.23546586]
[1764606963852,0.323,84954.0,84945.0,0.23544383]
[1764606964056,2.0,84955.0,84945.0,0.01177232]
[1764606964259,2.323,84955.0,84954.0,0.04923]
[1764606964945,0.323,84954.0,84948.0,0.04923]
[1764606965129,0.00026128,84956.0,84915.0,0.47105719]
[1764606965130,0.323,84950.0,84937.0,0.09804]
[1764606965438,0.99347248,84950.0,84938.0,0.03061329]
[1764606965638,0.99347248,84950.0,84940.0,0.01177301]
[1764606965991,0.323,84950.0,84938.0,0.01884]
[1764606966232,0.00026128,84956.0,84938.0,0.01177329]
[1764606966412,0.323,84952.0,84941.0,0.01177287]
[1764606966617,0.00026128,84956.0,84941.0,0.24722917]
[1764606966774,0.323,84954.0,84942.0,0.01177273]
[1764606966979,0.323,84950.0,84945.0,0.01177232]
[1764606967204,0.323,84954.0,84946.0,0.14727]
[1764606967540,2.323,84952.0,84951.0,0.06479]
[1764606967941,2.323,84952.0,84951.0,0.39825983]
[1764606968091,2.323,84952.0,84951.0,0.16283]
[1764606968287,2.323,84952.0,84946.0,0.06100218]
[1764606968288,2.0,84951.0,84946.0,0.04923]
[1764606968490,0.00026128,84956.0,84946.0,0.04923]
[1764606968694,0.323,84952.0,84946.0,0.04923]
[1764606968907,2.0,84951.0,84946.0,0.04923]
[1764606969338,0.323,84950.0,84946.0,0.04923]
[1764606969542,0.323,84950.0,84946.0,0.002]
[1764606969751,0.323,84950.0,84949.0,0.06479]
[1764606969945,0.32285846,84950.0,84949.0,0.06479]
[1764606970458,2.0,84955.0,84949.0,0.06479]
[1764606970685,2.0,84955.0,84946.0,0.04923]
[1764606970997,2.0,84955.0,84949.0,0.002]
[1764606971598,2.0,84955.0,84954.0,0.06479]
[1764606971806,0.00026128,84956.0,84955.0,0.24689974]
[1764606972124,0.00026128,84956.0,84955.0,0.40972974]
[1764606972495,0.0001165,84957.0,84955.0,0.47225273]
[1764606972713,0.0002,84970.0,84969.0,0.23537996]
[1764606972916,0.0002,84970.0,84969.0,0.34939996]
[1764606973117,0.0002,84970.0,84969.0,0.53484333]
[1764606973346,0.0002,84970.0,84969.0,0.04923]
[1764606973551,0.0002,84970.0,84962.0,0.04923]
[1764606974017,0.0002,84970.0,84969.0,0.003]
[1764606974525,0.0002,84970.0,84969.0,0.004]
[1764606974742,2.3232,84970.0,84969.0,0.004]
[1764606975382,2.34166676,84970.0,84969.0,0.001]
[1764606975794,0.323,84969.0,84962.0,0.002]
[1764606976023,2.0,84966.0,84951.0,0.17788149]
[1764606976228,0.323,84965.0,84953.0,0.01177121]
[1764606976430,0.323,84965.0,84951.0,0.17788149]
[1764606976907,0.323,84965.0,84962.0,0.002]
[1764606977110,0.01866676,84970.0,84964.0,0.06479]
[1764606977335,0.323,84968.0,84967.0,0.2353855]
[1764606977559,0.0002,84970.0,84969.0,0.30016996]
[1764606977772,0.0002,84970.0,84969.0,0.41539592]
[1764606977980,0.0002,84970.0,84969.0,0.51343592]
[1764606978197,0.0002,84970.0,84964.0,0.01176969]
[1764606978198,0.0002,84970.0,84960.0,0.09804]
[1764606978404,0.00065714,84970.0,84960.0,0.09804]
[1764606978615,0.00026124,84964.0,84960.0,0.09804]
[1764606978887,0.00026124,84964.0,84960.0,0.10981024]
[1764606979093,0.00026124,84964.0,84963.0,0.06479]
[1764606979538,0.00076124,84964.0,84960.0,0.004]
[1764606979749,0.00076124,84964.0,84930.0,0.04923]
[1764606979750,0.00076124,84964.0,84945.0,0.01884]
[1764606979965,0.03668,84952.0,84940.0,0.04923]
[1764606980178,0.03668,84952.0,84940.0,0.06807]
[1764606980386,0.03668,84952.0,84940.0,0.04923]
[1764606980808,0.01846802,84950.0,84940.0,0.04923]
[1764606981218,0.01846802,84950.0,84940.0,0.14727]
[1764606981431,0.01177204,84947.0,84926.0,0.09804]
[1764606981627,0.323,84939.0,84925.0,0.01884]
[1764606982006,0.323,84939.0,84931.0,0.09804]
[1764606982576,0.323,84949.0,84931.0,0.09804]
[1764606982822,0.323,84947.0,84931.0,0.09804]
[1764606982988,0.02534758,84946.0,84931.0,0.09804]
[1764606983390,0.02534758,84946.0,84931.0,0.10104]
[1764606983590,0.323,84945.0,84930.0,0.04923]
[1764606983796,0.02534758,84944.0,84930.0,0.04923]
[1764606985470,0.323,84939.0,84931.0,0.0492]
[1764606985812,0.323,84939.0,84920.0,0.04865]
[1764606985813,0.33477315,84939.0,84920.0,0.04865]
[1764606986008,0.02535791,84938.0,84931.0,0.003]
[1764606986551,0.02535902,84939.0,84932.0,0.0492]
[1764606987655,0.02535902,84943.0,84932.0,0.0492]
[1764606987862,0.02535902,84943.0,84917.0,0.01148099]
[1764606987863,0.00049,84933.0,84917.0,0.01148099]
[1764606988096,0.01177467,84928.0,84916.0,0.0492]
[1764606988293,0.00049,84933.0,84904.0,0.00219471]
[1764606988294,0.02289,84909.0,84904.0,0.00219471]
[1764606988634,0.323,84905.0,84904.0,0.00219471]
[1764606988826,0.38281162,84905.0,84904.0,0.00219471]
[1764606989033,0.39786688,84905.0,84904.0,0.00219471]
[1764606989287,2.48431841,84905.0,84904.0,0.00219471]
[1764606989830,2.48431841,84905.0,84904.0,0.00519471]
[1764606991089,2.39786688,84905.0,84904.0,0.00219471]
[1764606991636,2.48733211,84905.0,84904.0,0.00219471]
[1764606991800,2.51903088,84905.0,84904.0,0.00219471]
[1764606991996,2.52003088,84905.0,84904.0,0.00219471]
[1764606992200,2.48833211,84905.0,84904.0,0.00219471]
[1764606992402,2.5508551,84905.0,84904.0,0.00219471]
[1764606992698,0.323,84877.0,84860.0,0.0004]
[1764606992901,0.323,84877.0,84860.0,0.00078894]
[1764606993101,0.02683,84876.0,84860.0,0.00078894]
[1764606993873,0.01848078,84873.0,84860.0,0.00078894]
[1764606994343,0.01848078,84873.0,84860.0,0.01257305]
[1764606994559,0.01848078,84873.0,84860.0,0.00078894]
[1764606994785,0.01848078,84873.0,84860.0,0.00178894]
[1764606995194,0.01848078,84873.0,84860.0,0.00478894]
[1764606995567,0.323,84871.0,84860.0,0.00578894]
[1764606995768,0.323,84869.0,84860.0,0.00578894]
[1764606996432,0.323,84869.0,84860.0,0.00478894]
[1764606996692,0.01848078,84873.0,84860.0,0.00478894]
[1764606997067,0.01848078,84873.0,84860.0,0.09799894]
[1764606997471,0.01848078,84873.0,84872.0,0.10783]
[1764606998026,0.01848078,84873.0,84872.0,0.20104]
[1764606998178,0.323,84894.0,84872.0,0.20104]
[1764606998370,0.323,84890.0,84876.0,0.00091566]
[1764606998577,2.0,84893.0,84878.0,0.2356316]
[1764606998772,2.0,84895.0,84889.0,0.04633]
[1764606998991,0.00985,84896.0,84877.0,0.01178175]
[1764606998992,2.0,84893.0,84877.0,0.09321]